Body Name,Body Unit ,ServIce Label ,Service Code ,Organisational Unit,Expenditure,Payment Date,Transaction Number ,Net Payment,Supplier ID,Supplier Name 
North West Leicestershire District Council ,31UH,Housing,HRAHM,HRA Housing Management, completion Homestead Road,26/10/2011,1223783,"45,000.00",A038796,Riverside Group Ltd
North West Leicestershire District Council ,31UH,Finance,FINPLA,Financial Planning,Audit Fees,10/10/2012,1245113,"38,731.00",A035156,KPMG LLP
North West Leicestershire District Council ,31UH,Street Management,ENOWM,Environment Waste Management,Rent payments,05/10/2011,1222292,"36,548.19",A000950,Leicestershire County Council
North West Leicestershire District Council ,31UH,Street Management,ENOT,Environment Transport,Fuel ,10/10/2012,1245082,"20,671.20",A034942,Pace Petroleum Ltd
North West Leicestershire District Council ,31UH,Housing Repairs,HRAHRM,HRA Housing Repairs & Maintenance,Rent payments,03/10/2012,1244565,"15,298.60",A000950,Leicestershire County Council
North West Leicestershire District Council ,31UH,Leisure & Culture,CULTHC,Cultural Services Heritage,Grants,05/10/2011,1222328,"13,710.00",A037854,South and West Leicestershire
North West Leicestershire District Council ,31UH,Finance,FINPLA,Financial Planning,Training,03/10/2012,1244592,"13,450.00",A000770,Hinckley & Bosworth Borough Council
North West Leicestershire District Council ,31UH,Finance,EXCH,Exchequer Services,Recruitment - Agency Broker,05/10/2011,1222312,"11,691.18",A036958,Comensura Limited
North West Leicestershire District Council ,31UH,Finance,EXCH,Exchequer Services,Recruitment - Agency Broker,12/10/2011,1222531,"11,133.79",A036958,Comensura Limited
North West Leicestershire District Council ,31UH,Property Services,PROPFM,Property Facilities Management,Builders - Office Refurb Contract,24/10/2012,1245833,"10,917.45",A015236,G F Tomlinson Building Ltd
North West Leicestershire District Council ,31UH,Finance,EXCH,Exchequer Services,Recruitment - Agency Broker,19/10/2011,1223337,"10,411.80",A036958,Comensura Limited
North West Leicestershire District Council ,31UH,Housing Strategy,HS,Community - Housing Strategy,Funding Agreement,10/10/2012,1245009,"10,000.00",A037570,South & West Leicestershire CAB
North West Leicestershire District Council ,31UH,Finance,EXCH,Exchequer Services,Recruitment - Agency Broker,19/10/2011,1223415,"9,955.22",A036958,Comensura Limited
North West Leicestershire District Council ,31UH,Housing Repairs,HRAHRM,HRA Housing Repairs & Maintenance,Gas & Electricity - Boiler replacement,17/10/2012,1245490,"9,664.92",A031787,Lakers UK
North West Leicestershire District Council ,31UH,Finance,FINPLA,Financial Planning,Treasury Advice Service,12/10/2011,1222623,"8,950.00",A035603,Arlingclose Ltd
North West Leicestershire District Council ,31UH,Street Management,ESS,Environment - Street Scene,Grant payment,19/10/2011,1223115,"8,678.69",A034059,Leicestershire County Council
North West Leicestershire District Council ,31UH,Neighbourhoods & Communities,NACCS,N & C Community Safety,Partnership payment. ,17/10/2012,1245622,"8,500.00",A032786,Living Without Abuse
North West Leicestershire District Council ,31UH,Housing,HRATP,HRA Tenant Participation,Tenants Contents Insurance,05/10/2011,1222336,"7,861.53",A037657,Jardine Lloyd Thompson
North West Leicestershire District Council ,31UH,Housing Repairs,HRAHRM,HRA Housing Repairs & Maintenance,Gas & Electricity - Boiler replacement,10/10/2012,1245160,"7,512.29",A031787,Lakers UK
North West Leicestershire District Council ,31UH,Information Technology,ICT,ICT Services,Licence Fee,24/10/2012,1245752,"7,443.00",A039733,Syncsort Uk Limited
North West Leicestershire District Council ,31UH,Housing,HRAHM,HRA Housing Management,Rent payments,17/10/2012,1244320,"7,206.85",A000950,Leicestershire County Council
North West Leicestershire District Council ,31UH,Housing Repairs,HRAHRM,HRA Housing Repairs & Maintenance,Gas & Electricity - Boiler replacement,17/10/2012,1245509,"6,997.90",A031787,Lakers UK
North West Leicestershire District Council ,31UH,Leisure Centres,HPLC,Hood Park Leisure Centre,Energy - Gas - Contract 2 + 5 + 6,04/10/2011,1222370,"6,844.58",A035709,Corona Energy Retail 4 Ltd
North West Leicestershire District Council ,31UH,Housing,HRAPBS,HRA Performance & Business Support,Training,24/10/2012,1245519,"6,713.02",A000770,Hinckley & Bosworth Borough Council
North West Leicestershire District Council ,31UH,Housing,HRAHM,HRA Housing Management,Fuel - solid,12/10/2011,1222951,"6,431.58",A031928,Coal4Energy Ltd
North West Leicestershire District Council ,31UH,Finance,EXCH,Exchequer Services,Electricity - Supply for contract 4,26/10/2011,1223981,"6,395.55",A034733,British Gas Business
North West Leicestershire District Council ,31UH,Housing Repairs,HRAHRM,HRA Housing Repairs & Maintenance,Building Services,26/10/2011,1223987,"6,342.78",A033342,J Tomlinson Ltd
North West Leicestershire District Council ,31UH,Housing Repairs,HRAHRM,HRA Housing Repairs & Maintenance,Building Services - Housing - HPIP 9 - 10,24/10/2012,1245922,"6,340.20",A036945,Apollo Property Services Group Limited
North West Leicestershire District Council ,31UH,Leisure & Culture,CULTHC,Cultural Services Heritage,Grants,19/10/2011,1223187,"6,262.60",A037854,South and West Leicestershire
North West Leicestershire District Council ,31UH,Housing Repairs,HRAHRM,HRA Housing Repairs & Maintenance,Building Services - Housing - HPIP 9 - 10,24/10/2012,1245881,"6,172.72",A036945,Apollo Property Services Group Limited
North West Leicestershire District Council ,31UH,Housing,HRAHM,HRA Housing Management,Rent payments,05/10/2011,1222339,"6,125.85",A000950,Leicestershire County Council
North West Leicestershire District Council ,31UH,Housing,HRAHM,HRA Housing Management,Rent payments,05/10/2011,1222338,"6,087.54",A000950,Leicestershire County Council
North West Leicestershire District Council ,31UH,Information Technology,ICT,ICT Services,Photocopiers and consumables,03/10/2012,1244630,"5,800.00",A001301,The Danwood Group Ltd
North West Leicestershire District Council ,31UH,Information Technology,ICT,ICT Services,Photocopiers and consumables,03/10/2012,1244611,"5,800.00",A001301,The Danwood Group Ltd
North West Leicestershire District Council ,31UH,Housing,HRAHM,HRA Housing Management,Rent payments,17/10/2012,1244319,"5,765.48",A000950,Leicestershire County Council
North West Leicestershire District Council ,31UH,Street Management,ESS,Environment - Street Scene,IT - Software maintenance,24/10/2012,1245847,"5,619.60",A024896,Imperial Civil Enforcement Solutions
North West Leicestershire District Council ,31UH,Communications,CP,Corporate - Communications,Printing - Lot 3 inc Vision,19/10/2011,1223384,"5,483.46",A037550,W & J Linney Limited (Linney Group)
North West Leicestershire District Council ,31UH,Housing Repairs,HRAHRM,HRA Housing Repairs & Maintenance,Building Services - Housing - HPIP 9 - 10,24/10/2012,1245889,"5,327.06",A036945,Apollo Property Services Group Limited
North West Leicestershire District Council ,31UH,Street Management,ENOGT,Environment General Technician,Water - Sewerage services,12/10/2011,1222686,"5,162.23",A001468,Severn Trent Water Limited
North West Leicestershire District Council ,31UH,Street Management,ENOP,Environment Parks,Garden Nursey supplies,24/10/2012,1246201,"5,157.00",A039715,Baginton Nurseries Ltd
North West Leicestershire District Council ,31UH,Housing Repairs,HRAHRM,HRA Housing Repairs & Maintenance,Building Services - Housing - HPIP 9 - 10,24/10/2012,1245891,"5,128.94",A036945,Apollo Property Services Group Limited
North West Leicestershire District Council ,31UH,Housing Repairs,HRAHRM,HRA Housing Repairs & Maintenance,Building Services - Housing - HPIP 9 - 10,24/10/2012,1245892,"5,128.94",A036945,Apollo Property Services Group Limited
North West Leicestershire District Council ,31UH,Housing Repairs,HRAHRM,HRA Housing Repairs & Maintenance,Building Services - Housing - HPIP 9 - 10,24/10/2012,1245893,"5,128.94",A036945,Apollo Property Services Group Limited
North West Leicestershire District Council ,31UH,Leisure & Culture,CULTHC,Cultural Services Heritage,Grant Payment,12/10/2011,1222912,"5,000.00",A038873,VIP Snibston Youth
North West Leicestershire District Council ,31UH,Housing,HRAHM,HRA Housing Management,Housing - Consultancy,12/10/2011,1222624,"4,925.00",A038485,P & A Cooper
North West Leicestershire District Council ,31UH,Housing Repairs,HRAHRM,HRA Housing Repairs & Maintenance,Building Services - Housing - HPIP 9 - 10,24/10/2012,1245879,"4,803.97",A036945,Apollo Property Services Group Limited
North West Leicestershire District Council ,31UH,Corporate Director,HR,Human Resources,Professional Services,10/10/2012,1244976,"4,750.00",A039706,IRG Advisors LLP
North West Leicestershire District Council ,31UH,Housing Repairs,HRAHRM,HRA Housing Repairs & Maintenance,Building Services - Housing - HPIP 9 - 10,24/10/2012,1245880,"4,697.66",A036945,Apollo Property Services Group Limited
North West Leicestershire District Council ,31UH,Housing Repairs,HRAHRM,HRA Housing Repairs & Maintenance,Building Services - Housing - HPIP 9 - 10,24/10/2012,1245882,"4,697.66",A036945,Apollo Property Services Group Limited
North West Leicestershire District Council ,31UH,Housing Repairs,HRAHRM,HRA Housing Repairs & Maintenance,Building Services - Housing - HPIP 9 - 10,24/10/2012,1245883,"4,697.66",A036945,Apollo Property Services Group Limited
North West Leicestershire District Council ,31UH,Housing Repairs,HRAHRM,HRA Housing Repairs & Maintenance,Building Services - Housing - HPIP 9 - 10,24/10/2012,1245888,"4,697.66",A036945,Apollo Property Services Group Limited
North West Leicestershire District Council ,31UH,Housing Repairs,HRAHRM,HRA Housing Repairs & Maintenance,Building Services - Housing - HPIP 9 - 10,24/10/2012,1245912,"4,697.66",A036945,Apollo Property Services Group Limited
North West Leicestershire District Council ,31UH,Housing Repairs,HRAHRM,HRA Housing Repairs & Maintenance,Building Services - Housing - HPIP 9 - 10,24/10/2012,1245923,"4,697.66",A036945,Apollo Property Services Group Limited
North West Leicestershire District Council ,31UH,Housing Repairs,HRAHRM,HRA Housing Repairs & Maintenance,Building Services - Housing - HPIP 9 - 10,24/10/2012,1245931,"4,697.66",A036945,Apollo Property Services Group Limited
North West Leicestershire District Council ,31UH,Housing Repairs,HRAHRM,HRA Housing Repairs & Maintenance,Building Services - Housing - HPIP 9 - 10,24/10/2012,1245932,"4,697.66",A036945,Apollo Property Services Group Limited
North West Leicestershire District Council ,31UH,Housing Repairs,HRAHRM,HRA Housing Repairs & Maintenance,Building Services - Housing - HPIP 9 - 10,24/10/2012,1245933,"4,697.66",A036945,Apollo Property Services Group Limited
North West Leicestershire District Council ,31UH,Housing Repairs,HRAHRM,HRA Housing Repairs & Maintenance,Building Services - Housing - HPIP 9 - 10,24/10/2012,1245884,"4,691.62",A036945,Apollo Property Services Group Limited
North West Leicestershire District Council ,31UH,Housing Repairs,HRAHRM,HRA Housing Repairs & Maintenance,Building Services - Housing - HPIP 9 - 10,24/10/2012,1245930,"4,639.67",A036945,Apollo Property Services Group Limited
North West Leicestershire District Council ,31UH,Street Management,ENOGT,Environment General Technician,Rent payments,12/10/2011,1222680,"4,581.63",A037057,D'Zign Uk Group
North West Leicestershire District Council ,31UH,Housing Repairs,HRAHRM,HRA Housing Repairs & Maintenance,Building Services - Housing - HPIP 9 - 10,24/10/2012,1245901,"4,555.10",A036945,Apollo Property Services Group Limited
North West Leicestershire District Council ,31UH,Housing Repairs,HRAHRM,HRA Housing Repairs & Maintenance,Building Services - Housing - HPIP 9 - 10,24/10/2012,1245885,"4,553.90",A036945,Apollo Property Services Group Limited
North West Leicestershire District Council ,31UH,Housing Repairs,HRAHRM,HRA Housing Repairs & Maintenance,Building Services - Housing - HPIP 9 - 10,24/10/2012,1245886,"4,553.90",A036945,Apollo Property Services Group Limited
North West Leicestershire District Council ,31UH,Housing Repairs,HRAHRM,HRA Housing Repairs & Maintenance,Building Services - Housing - HPIP 9 - 10,24/10/2012,1245924,"4,529.29",A036945,Apollo Property Services Group Limited
North West Leicestershire District Council ,31UH,Housing Repairs,HRAHRM,HRA Housing Repairs & Maintenance,Building Services,19/10/2011,1223369,"4,471.14",A033342,J Tomlinson Ltd
North West Leicestershire District Council ,31UH,Information Technology,ICT,ICT Services,Photocopiers and consumables,25/10/2011,1223837,"4,414.76",A001301,The Danwood Group Ltd
North West Leicestershire District Council ,31UH,Housing Repairs,HRAHRM,HRA Housing Repairs & Maintenance,Gas & Electricity - Boiler replacement,10/10/2012,1245242,"4,381.10",A031787,Lakers UK
North West Leicestershire District Council ,31UH,Housing Repairs,HRAHRM,HRA Housing Repairs & Maintenance,Building Services - Housing - HPIP 9 - 10,24/10/2012,1245890,"4,361.81",A036945,Apollo Property Services Group Limited
North West Leicestershire District Council ,31UH,Housing Repairs,HRAHRM,HRA Housing Repairs & Maintenance,Gas & Electricity - Boiler replacement,10/10/2012,1245163,"4,329.79",A031787,Lakers UK
North West Leicestershire District Council ,31UH,Information Technology,ICT,ICT Services,IT - Telephone and computing,19/10/2011,1223399,"4,307.82",A008908,Virgin Media Business
North West Leicestershire District Council ,31UH,Leisure Centres,HLC,Hermitage Leisure Centre,Energy - Gas - Contract 2 + 5 + 6,04/10/2011,1222372,"4,220.77",A035709,Corona Energy Retail 4 Ltd
North West Leicestershire District Council ,31UH,Leisure Centres,HLC,Hermitage Leisure Centre,Energy - Gas - Contract 2 + 5 + 6,11/10/2011,1222885,"4,193.58",A035709,Corona Energy Retail 4 Ltd
North West Leicestershire District Council ,31UH,Housing,HRAPBS,HRA Performance & Business Support,IT - Software supply and maintenance,10/10/2012,1244969,"4,115.00",A035213,PIMSS Data Systems
North West Leicestershire District Council ,31UH,Housing Strategy,HS,Community - Housing Strategy,Social Work - Home visiting scheme,12/10/2011,1222868,"4,098.80",A000780,Homestart (N.W. Leics)
North West Leicestershire District Council ,31UH,Finance,FINPLA,Financial Planning,HRA subsidy,25/10/2011,1223846,"4,080.00",A028518,Department for Communities & Local Government
North West Leicestershire District Council ,31UH,Housing Repairs,HRAHRM,HRA Housing Repairs & Maintenance,Building Services - Housing - HPIP 9 - 10,24/10/2012,1245887,"4,057.38",A036945,Apollo Property Services Group Limited
North West Leicestershire District Council ,31UH,Planning & Development,ECCTV,Environment - Town Centre/CCTV,Security - Provide Monitoring Services in respect of CCTV,17/10/2012,1245550,"3,923.00",A038132,Premier Security Services (Midlands) Limited
North West Leicestershire District Council ,31UH,Planning & Development,ECP,Environment Community Planning,Bicycles - Through the Cycle2Work Scheme,10/10/2012,1245341,"3,825.00",A028298,Halfords
North West Leicestershire District Council ,31UH,Environmental Health,EES,Environmental Services,grant payment,26/10/2011,1223804,"3,738.00",A038916,MFW Building Services Ltd
North West Leicestershire District Council ,31UH,Environmental Health,EES,Environmental Services,Grant payment,12/10/2011,1222919,"3,683.00",A038469,Leicestershire County Council
North West Leicestershire District Council ,31UH,Environmental Health,EES,Environmental Services,Grants,19/10/2011,1223302,"3,509.97",A038668,Adaptions
North West Leicestershire District Council ,31UH,Leisure & Culture,CULTEV,Cultural Services Arts & Events,Event,12/10/2011,1222613,"3,500.00",A037230,Ashby de la Zouch Partnership
North West Leicestershire District Council ,31UH,Housing Repairs,HRAHRM,HRA Housing Repairs & Maintenance,Gas & Electricity - Boiler replacement,24/10/2012,1245964,"3,484.57",A031787,Lakers UK
North West Leicestershire District Council ,31UH,Housing Repairs,HRAHRM,HRA Housing Repairs & Maintenance,Gas & Electricity - Boiler replacement,10/10/2012,1245168,"3,477.56",A031787,Lakers UK
North West Leicestershire District Council ,31UH,Housing Strategy,HS,Community - Housing Strategy,Accommodation - Bed and Breakfast,10/10/2012,1245054,"3,465.00",A027796,The Cedars
North West Leicestershire District Council ,31UH,Information Technology,ICT,ICT Services,IT - Equipment,17/10/2012,1245621,"3,408.01",A000470,Dell Computer Corporation Ltd
North West Leicestershire District Council ,31UH,Property Services,PROPFM,Property Facilities Management,Energy - Electricity - Contract 1,25/10/2011,1223836,"3,216.25",A030266,Southern Electric
North West Leicestershire District Council ,31UH,Street Management,ENOGT,Environment General Technician,Sandbags,24/10/2012,1246203,"3,200.00",A039847,SG Baker Ltd
North West Leicestershire District Council ,31UH,Housing Repairs,HRAHRM,HRA Housing Repairs & Maintenance,Gas & Electricity - Boiler replacement,24/10/2012,1246039,"3,196.59",A031787,Lakers UK
North West Leicestershire District Council ,31UH,Leisure & Culture,CULTEV,Cultural Services Arts & Events,Consultancy Fees ,17/10/2012,1245377,"3,111.00",A027423,Leicestershire County Council
North West Leicestershire District Council ,31UH,Housing Repairs,HRAHRM,HRA Housing Repairs & Maintenance,Fuel servicing (Hsg Maintenance),19/10/2011,1223370,"2,928.80",A035675,Elite Sweep Service
North West Leicestershire District Council ,31UH,Leisure Centres,HPLC,Hood Park Leisure Centre,Lighting - Flood Lighting,17/10/2012,1245601,"2,913.58",A028616,Christy Lighting Ltd
North West Leicestershire District Council ,31UH,Legal & Democratic,LDLS,Legal Services,Books - Legal,05/10/2011,1222299,"2,841.00",A001611,Sweet & Maxwell Ltd
North West Leicestershire District Council ,31UH,Information Technology,ICT,ICT Services,IT - Equipment,17/10/2012,1245647,"2,836.00",A000470,Dell Computer Corporation Ltd
North West Leicestershire District Council ,31UH,Housing Repairs,HRAHRM,HRA Housing Repairs & Maintenance,Construction - Rewire Works,03/10/2012,1244554,"2,773.05",A038131,Lovell Respond
North West Leicestershire District Council ,31UH,Housing Repairs,HRAHRM,HRA Housing Repairs & Maintenance,Construction - Rewire Works,03/10/2012,1244560,"2,748.62",A038131,Lovell Respond
North West Leicestershire District Council ,31UH,Information Technology,ICT,ICT Services,Telecommunications,10/10/2012,1245144,"2,734.48",A038473,Cable & Wireless Worldwide
North West Leicestershire District Council ,31UH,Housing Repairs,HRAHRM,HRA Housing Repairs & Maintenance,Gas & Electricity - Boiler replacement,10/10/2012,1245162,"2,733.84",A031787,Lakers UK
North West Leicestershire District Council ,31UH,Housing Repairs,HRAHRM,HRA Housing Repairs & Maintenance,Gas & Electricity - Boiler replacement,10/10/2012,1245170,"2,698.48",A031787,Lakers UK
North West Leicestershire District Council ,31UH,Housing Repairs,HRAHRM,HRA Housing Repairs & Maintenance,Gas & Electricity - Boiler replacement,24/10/2012,1246031,"2,626.79",A031787,Lakers UK
North West Leicestershire District Council ,31UH,Housing Repairs,HRAHRM,HRA Housing Repairs & Maintenance,Fuel servicing (Hsg Maintenance),12/10/2011,1222857,"2,552.24",A035675,Elite Sweep Service
North West Leicestershire District Council ,31UH,Housing Repairs,HRAHRM,HRA Housing Repairs & Maintenance,Gas & Electricity - Boiler replacement,10/10/2012,1245167,"2,523.05",A031787,Lakers UK
North West Leicestershire District Council ,31UH,Housing Repairs,HRAHRM,HRA Housing Repairs & Maintenance,Gas & Electricity - Boiler replacement,24/10/2012,1246030,"2,483.44",A031787,Lakers UK
North West Leicestershire District Council ,31UH,Corporate Director,HR,Human Resources,Childcare Vouchers,17/10/2012,1245732,"2,459.00",A038606,Premier Employer Solutions Limited
North West Leicestershire District Council ,31UH,Leisure Centres,HLC,Hermitage Leisure Centre,Furniture- Swimming Pool Seating,03/10/2012,1244521,"2,437.42",A033909,Audience Systems Limited
North West Leicestershire District Council ,31UH,Housing Repairs,HRAHRM,HRA Housing Repairs & Maintenance,Construction - Rewire Works,03/10/2012,1244558,"2,414.15",A038131,Lovell Respond
North West Leicestershire District Council ,31UH,Housing Repairs,HRAHRM,HRA Housing Repairs & Maintenance,Gas & Electricity - Boiler replacement,10/10/2012,1245178,"2,400.00",A031787,Lakers UK
North West Leicestershire District Council ,31UH,Housing Repairs,HRAHRM,HRA Housing Repairs & Maintenance,Gas & Electricity - Boiler replacement,10/10/2012,1245152,"2,400.00",A031787,Lakers UK
North West Leicestershire District Council ,31UH,Housing Repairs,HRAHRM,HRA Housing Repairs & Maintenance,Gas & Electricity - Boiler replacement,17/10/2012,1245491,"2,400.00",A031787,Lakers UK
North West Leicestershire District Council ,31UH,Property Services,PROPCL,Property Commercial Lettings,Refund of Deposit,26/10/2011,1223805,"2,374.31",A038917,Working Links
North West Leicestershire District Council ,31UH,Housing Repairs,HRAHRM,HRA Housing Repairs & Maintenance,Construction - Rewire Works,03/10/2012,1244555,"2,365.91",A038131,Lovell Respond
North West Leicestershire District Council ,31UH,Housing Repairs,HRAHRM,HRA Housing Repairs & Maintenance,Construction - Rewire Works,03/10/2012,1244557,"2,365.91",A038131,Lovell Respond
North West Leicestershire District Council ,31UH,Leisure Centres,HLC,Hermitage Leisure Centre,Energy - Electricity - Contract 1,19/10/2011,1223172,"2,353.71",A030266,Southern Electric
North West Leicestershire District Council ,31UH,Housing Repairs,HRAHRM,HRA Housing Repairs & Maintenance,Construction - Rewire Works,03/10/2012,1244552,"2,343.91",A038131,Lovell Respond
North West Leicestershire District Council ,31UH,Street Management,ENOP,Environment Parks,Leisure - Painting and Decorating,03/10/2012,1244613,"2,338.00",A038547,Cyril John Decorators Limited
North West Leicestershire District Council ,31UH,Housing Repairs,HRAHRM,HRA Housing Repairs & Maintenance,Construction - Rewire Works,03/10/2012,1244559,"2,325.75",A038131,Lovell Respond
North West Leicestershire District Council ,31UH,Housing Repairs,HRAHRM,HRA Housing Repairs & Maintenance,Construction - Rewire Works,03/10/2012,1244551,"2,313.43",A038131,Lovell Respond
North West Leicestershire District Council ,31UH,Housing Repairs,HRAHRM,HRA Housing Repairs & Maintenance,Alarms - older persons system repairs and maintenance,19/10/2011,1223391,"2,299.47",A001701,Tunstall Healthcare (UK) Limited
North West Leicestershire District Council ,31UH,Corporate Director,HR,Human Resources,Charity Services - Childcare Vouchers,03/10/2012,1244464,"2,289.00",A035521,PES Limited
North West Leicestershire District Council ,31UH,Street Management,ENOP,Environment Parks,Spring Flowering Bulbs,17/10/2012,1245627,"2,286.77",A022505,Cornish King Bulb Growers
North West Leicestershire District Council ,31UH,Leisure & Culture,CULTEV,Cultural Services Arts & Events,Grants,12/10/2011,1222943,"2,278.80",A021686,Ashby Dramatic Society
North West Leicestershire District Council ,31UH,Housing Repairs,HRAHRM,HRA Housing Repairs & Maintenance,Construction - Rewire Works,03/10/2012,1244553,"2,277.51",A038131,Lovell Respond
North West Leicestershire District Council ,31UH,Housing Repairs,HRAHRM,HRA Housing Repairs & Maintenance,Construction - Rewire Works,03/10/2012,1244556,"2,277.51",A038131,Lovell Respond
North West Leicestershire District Council ,31UH,Housing Repairs,HRAHRM,HRA Housing Repairs & Maintenance,Construction - Rewire Works,03/10/2012,1244561,"2,277.51",A038131,Lovell Respond
North West Leicestershire District Council ,31UH,Housing Repairs,HRAHRM,HRA Housing Repairs & Maintenance,Construction - Rewire Works,03/10/2012,1244563,"2,277.51",A038131,Lovell Respond
North West Leicestershire District Council ,31UH,Housing Repairs,HRAHRM,HRA Housing Repairs & Maintenance,Housing Maintenance - Replacement Windows and Doors,03/10/2012,1244722,"2,254.62",A036741,SBP Limited (Trading as Plastal & Permadoor)
North West Leicestershire District Council ,31UH,Planning & Development,ECCTV,Environment - Town Centre/CCTV,Air Conditioning Systems,17/10/2012,1244624,"2,242.00",A035362,Electrum Services Limited
North West Leicestershire District Council ,31UH,Housing Repairs,HRAHRM,HRA Housing Repairs & Maintenance,Housing Maintenance - Replacement Windows and Doors,03/10/2012,1244741,"2,229.60",A036741,SBP Limited (Trading as Plastal & Permadoor)
North West Leicestershire District Council ,31UH,Information Technology,ICT,ICT Services,IT - solutions,17/10/2012,1241329,"2,200.00",A034753,ANS Group Plc
North West Leicestershire District Council ,31UH,Housing,HRAOPS,HRA Older Persons Service,Alarms - older persons system repairs and maintenance,17/10/2012,1245658,"2,121.50",A001701,Tunstall Healthcare (UK) Limited
North West Leicestershire District Council ,31UH,Housing Repairs,HRAHRM,HRA Housing Repairs & Maintenance,Construction - Rewire Works,03/10/2012,1244562,"2,102.66",A038131,Lovell Respond
North West Leicestershire District Council ,31UH,Housing Repairs,HRAHRM,HRA Housing Repairs & Maintenance,Construction - Rewire Works,03/10/2012,1244564,"2,102.66",A038131,Lovell Respond
North West Leicestershire District Council ,31UH,Street Management,ENOGT,Environment General Technician,Gas & electricity supplier,12/10/2011,1222682,"2,026.75",A028766,E.ON Energy Electricity Income Account
North West Leicestershire District Council ,31UH,Housing Repairs,HRAHRM,HRA Housing Repairs & Maintenance,Gas & Electricity - Boiler replacement,24/10/2012,1245965,"2,016.14",A031787,Lakers UK
North West Leicestershire District Council ,31UH,Leisure & Culture,LCM,Leisure & Cult Mangt,Graduate Training Post,03/10/2012,1244587,"2,000.00",A029490,King Edward VII Science & Sport
North West Leicestershire District Council ,31UH,Housing Repairs,HRAHRM,HRA Housing Repairs & Maintenance,Rent payments,24/10/2012,1245934,"1,995.00",A000950,Leicestershire County Council
North West Leicestershire District Council ,31UH,Housing Repairs,HRAHRM,HRA Housing Repairs & Maintenance,Housing Maintenance - Replacement Windows and Doors,03/10/2012,1244712,"1,962.87",A036741,SBP Limited (Trading as Plastal & Permadoor)
North West Leicestershire District Council ,31UH,Finance,FINPLA,Financial Planning,"Printing- Council Tax, NNDR and benefits",03/10/2012,1244833,"1,879.28",A038192,CFH - Total Document Management Limited
North West Leicestershire District Council ,31UH,Housing Repairs,HRAHRM,HRA Housing Repairs & Maintenance,Waste - Tipping building,05/10/2011,1222142,"1,850.18",A035471,Ward Recycling
North West Leicestershire District Council ,31UH,Street Management,ESS,Environment - Street Scene,Consultancy,10/10/2012,1245122,"1,850.00",A039235,Sharps Acoustics LLP
North West Leicestershire District Council ,31UH,Information Technology,ICT,ICT Services,IT - Telecommunications and data services,17/10/2012,1245685,"1,824.58",A032826,Freedom Communications (UK) Ltd
North West Leicestershire District Council ,31UH,Leisure Centres,HPLC,Hood Park Leisure Centre,Water - Sewerage services,19/10/2011,1223175,"1,798.13",A001468,Severn Trent Water Limited
North West Leicestershire District Council ,31UH,Property Services,PROPCL,Property Commercial Lettings,Water Usage,05/10/2011,1222311,"1,796.24",A001136,Moira Furnace Museum Trust Ltd
North West Leicestershire District Council ,31UH,Housing Repairs,HRAHRM,HRA Housing Repairs & Maintenance,Building Services,12/10/2011,1222858,"1,791.69",A033342,J Tomlinson Ltd
North West Leicestershire District Council ,31UH,Leisure Centres,HPLC,Hood Park Leisure Centre,Leisure - Astro turf maintenance,03/10/2012,1244533,"1,770.00",A000516,Technical Surfaces Ltd
North West Leicestershire District Council ,31UH,Housing Repairs,HRAHRM,HRA Housing Repairs & Maintenance,Gas & Electricity - Boiler replacement,24/10/2012,1246040,"1,744.87",A031787,Lakers UK
North West Leicestershire District Council ,31UH,Leisure & Culture,CULTHC,Cultural Services Heritage,Grants,05/10/2011,1222329,"1,720.83",A027552,Age Concern Leicestershire & Rutland (Welfare services) ltd
North West Leicestershire District Council ,31UH,Street Management,ENOP,Environment Parks,Garden Works,03/10/2012,1244574,"1,700.00",A039324,Four Counties Tree Specialists Ltd
North West Leicestershire District Council ,31UH,Street Management,ENOGT,Environment General Technician,Workwear,17/10/2012,1245351,"1,696.76",A039764,EPT SERVICES
North West Leicestershire District Council ,31UH,Housing Repairs,HRAHRM,HRA Housing Repairs & Maintenance,Gas & Electricity - Gas installation ,24/10/2012,1245438,"1,648.97",A026237,British Gas Trading Limited
North West Leicestershire District Council ,31UH,Housing Repairs,HRAHRM,HRA Housing Repairs & Maintenance,Gas & Electricity - Gas installation ,24/10/2012,1245439,"1,648.97",A026237,British Gas Trading Limited
North West Leicestershire District Council ,31UH,Housing Repairs,HRAHRM,HRA Housing Repairs & Maintenance,Gas & Electricity - Gas installation ,24/10/2012,1245440,"1,648.97",A026237,British Gas Trading Limited
North West Leicestershire District Council ,31UH,Housing Repairs,HRAHRM,HRA Housing Repairs & Maintenance,Gas & Electricity - Gas installation ,24/10/2012,1245441,"1,648.97",A026237,British Gas Trading Limited
North West Leicestershire District Council ,31UH,Housing Repairs,HRAHRM,HRA Housing Repairs & Maintenance,Gas & Electricity - Gas installation ,24/10/2012,1245442,"1,648.97",A026237,British Gas Trading Limited
North West Leicestershire District Council ,31UH,Housing Repairs,HRAHRM,HRA Housing Repairs & Maintenance,Gas & Electricity - Gas installation ,24/10/2012,1245443,"1,648.97",A026237,British Gas Trading Limited
North West Leicestershire District Council ,31UH,Housing Repairs,HRAHRM,HRA Housing Repairs & Maintenance,Gas & Electricity - Gas installation ,24/10/2012,1245444,"1,648.97",A026237,British Gas Trading Limited
North West Leicestershire District Council ,31UH,Housing Repairs,HRAHRM,HRA Housing Repairs & Maintenance,Gas & Electricity - Gas installation ,24/10/2012,1245456,"1,648.97",A026237,British Gas Trading Limited
North West Leicestershire District Council ,31UH,Housing Repairs,HRAHRM,HRA Housing Repairs & Maintenance,Gas & Electricity - Gas installation ,24/10/2012,1245458,"1,648.97",A026237,British Gas Trading Limited
North West Leicestershire District Council ,31UH,Housing Repairs,HRAHRM,HRA Housing Repairs & Maintenance,Gas & Electricity - Boiler replacement,10/10/2012,1245157,"1,636.47",A031787,Lakers UK
North West Leicestershire District Council ,31UH,Property Services,PROPFM,Property Facilities Management,Legionella Risk Assessments,10/10/2012,1244480,"1,621.00",A037013,Rentokil Initial UK Limited
North West Leicestershire District Council ,31UH,Planning & Development,EBC,Building Control,Consultancy Fees ,10/10/2012,1244998,"1,588.00",A027423,Leicestershire County Council
North West Leicestershire District Council ,31UH,Street Management,ENOGT,Environment General Technician,Rent payments,05/10/2011,1222337,"1,586.67",A000950,Leicestershire County Council
North West Leicestershire District Council ,31UH,Housing Repairs,HRAHRM,HRA Housing Repairs & Maintenance,Gas & Electricity - Boiler replacement,24/10/2012,1245995,"1,553.73",A031787,Lakers UK
North West Leicestershire District Council ,31UH,Housing Repairs,HRAHRM,HRA Housing Repairs & Maintenance,Building Services - Housing - HPIP 9 - 10,24/10/2012,1245902,"1,523.20",A036945,Apollo Property Services Group Limited
North West Leicestershire District Council ,31UH,Information Technology,ICT,ICT Services,Photocopiers and consumables,04/10/2011,1222381,"1,511.93",A001301,The Danwood Group Ltd
North West Leicestershire District Council ,31UH,Housing Repairs,HRAHRM,HRA Housing Repairs & Maintenance,Gas & Electricity - Boiler replacement,10/10/2012,1245169,"1,508.34",A031787,Lakers UK
North West Leicestershire District Council ,31UH,Housing Strategy,HS,Community - Housing Strategy,Accommodation - Bed and Breakfast,10/10/2012,1245053,"1,505.00",A027796,The Cedars
North West Leicestershire District Council ,31UH,Housing Repairs,HRAHRM,HRA Housing Repairs & Maintenance,Gas & Electricity - Boiler replacement,24/10/2012,1246045,"1,496.00",A031787,Lakers UK
North West Leicestershire District Council ,31UH,Leisure Centres,HPLC,Hood Park Leisure Centre,Energy - Electricity - Contract 1,19/10/2011,1223176,"1,494.90",A030266,Southern Electric
North West Leicestershire District Council ,31UH,Leisure Centres,HLC,Hermitage Leisure Centre,Water - Sewerage services,12/10/2011,1222937,"1,469.81",A001468,Severn Trent Water Limited
North West Leicestershire District Council ,31UH,Leisure Centres,HLC,Hermitage Leisure Centre,Water - Sewerage services,05/10/2011,1222464,"1,458.55",A001468,Severn Trent Water Limited
North West Leicestershire District Council ,31UH,Corporate Director,HR,Human Resources,Medical fees,03/10/2012,1244494,"1,449.12",A031645,Forge Health Limited
North West Leicestershire District Council ,31UH,Planning & Development,EBC,Building Control,Consultancy Fees ,24/10/2012,1246218,"1,442.00",A027423,Leicestershire County Council
North West Leicestershire District Council ,31UH,Housing Repairs,HRAHRM,HRA Housing Repairs & Maintenance,Gas & Electricity - Boiler replacement,10/10/2012,1245156,"1,402.29",A031787,Lakers UK
North West Leicestershire District Council ,31UH,Housing Repairs,HRAHRM,HRA Housing Repairs & Maintenance,Gas & Electricity - Boiler replacement,24/10/2012,1246041,"1,385.49",A031787,Lakers UK
North West Leicestershire District Council ,31UH,Housing Repairs,HRAHRM,HRA Housing Repairs & Maintenance,Fuel servicing (Hsg Maintenance),26/10/2011,1223988,"1,380.72",A035675,Elite Sweep Service
North West Leicestershire District Council ,31UH,Planning & Development,ECP,Environment Community Planning,Training,05/10/2011,1222297,"1,372.92",A000770,Hinckley & Bosworth Borough Council
North West Leicestershire District Council ,31UH,Planning & Development,ECP,Environment Community Planning,Training,05/10/2011,1222296,"1,372.92",A000770,Hinckley & Bosworth Borough Council
North West Leicestershire District Council ,31UH,Housing Repairs,HRAHRM,HRA Housing Repairs & Maintenance,Gas & Electricity - Boiler replacement,03/10/2012,1244676,"1,338.37",A031787,Lakers UK
North West Leicestershire District Council ,31UH,Environmental Health,EES,Environmental Services,Animals - Boarding Kennels,26/10/2011,1223978,"1,335.71",A000385,College Garth Boarding Kennels
North West Leicestershire District Council ,31UH,Housing Repairs,HRAHRM,HRA Housing Repairs & Maintenance,IT - Telephone and computing,26/10/2011,1223807,"1,307.00",A038909,Wyvern Business Systems
North West Leicestershire District Council ,31UH,Housing Repairs,HRAHRM,HRA Housing Repairs & Maintenance,Consultancy Services,05/10/2011,1222141,"1,300.00",A008757,Ksa Consulting Engineers Ltd
North West Leicestershire District Council ,31UH,Housing,HRAHM,HRA Housing Management,Temporay Staff,10/10/2012,1245125,"1,296.50",A031086,Premier Waste and Recycling
North West Leicestershire District Council ,31UH,Street Management,ENOT,Environment Transport,Small civils and plant hire,10/10/2012,1244995,"1,287.56",A000438,Cuckoo Gap Limited
North West Leicestershire District Council ,31UH,Housing Repairs,HRAHRM,HRA Housing Repairs & Maintenance,Gas & Electricity - Boiler replacement,10/10/2012,1245166,"1,276.31",A031787,Lakers UK
North West Leicestershire District Council ,31UH,Street Management,ENOP,Environment Parks,Leisure - Painting and Decorating,03/10/2012,1244612,"1,265.00",A038547,Cyril John Decorators Limited
North West Leicestershire District Council ,31UH,Housing Repairs,HRAHRM,HRA Housing Repairs & Maintenance,Gas & Electricity - Boiler replacement,10/10/2012,1245164,"1,223.23",A031787,Lakers UK
North West Leicestershire District Council ,31UH,Finance,FINPLA,Financial Planning,Debt Collection,26/10/2011,1223984,"1,215.83",A004468,Kings Armoured Security Services Ltd
North West Leicestershire District Council ,31UH,Corporate Director,CORDI,Corporate Director,Design - Graphic My Place Branding,24/10/2012,1245812,"1,215.00",A036525,Three One Zero Design
North West Leicestershire District Council ,31UH,Street Management,ENOT,Environment Transport,Engineering - Parts / Supplies,24/10/2012,1246200,"1,212.82",A036178,Taylor Engineering & Fabrications Ltd
North West Leicestershire District Council ,31UH,Street Management,ENOP,Environment Parks,Grounds Maintenance - Landscaping,03/10/2012,1243828,"1,212.50",A035186,Manor Landscapes
North West Leicestershire District Council ,31UH,Corporate Director,HR,Human Resources,Training,24/10/2012,1246219,"1,209.60",A039418,Qualityculture Ltd
North West Leicestershire District Council ,31UH,Property Services,PROPFM,Property Facilities Management,Building - General Maintenance works - Minor framework,24/10/2012,1244623,"1,200.00",A036239,Alf Wright Construction Limited
North West Leicestershire District Council ,31UH,Finance,FINPLA,Financial Planning,"Printing- Council Tax, NNDR and benefits",24/10/2012,1246097,"1,197.87",A038192,CFH - Total Document Management Limited
North West Leicestershire District Council ,31UH,Corporate Director,HR,Human Resources,Policing,03/10/2012,1244465,"1,197.00",A007096,The OPCC for Leicestershire
North West Leicestershire District Council ,31UH,Housing Repairs,HRAHRM,HRA Housing Repairs & Maintenance,Gas & Electricity - Boiler replacement,10/10/2012,1245165,"1,194.73",A031787,Lakers UK
North West Leicestershire District Council ,31UH,Housing Repairs,HRAHRM,HRA Housing Repairs & Maintenance,Building Services - Housing - HPIP 9 - 10,24/10/2012,1245896,"1,176.00",A036945,Apollo Property Services Group Limited
North West Leicestershire District Council ,31UH,Street Management,ESS,Environment - Street Scene,Consultancy,24/10/2012,1245751,"1,170.00",A039835,AEA Technology PLC
North West Leicestershire District Council ,31UH,Housing Repairs,HRAHRM,HRA Housing Repairs & Maintenance,Gas & Electricity - Boiler replacement,24/10/2012,1245967,"1,160.19",A031787,Lakers UK
North West Leicestershire District Council ,31UH,Housing Repairs,HRAHRM,HRA Housing Repairs & Maintenance,Gas & Electricity - Boiler replacement,24/10/2012,1246043,"1,154.44",A031787,Lakers UK
North West Leicestershire District Council ,31UH,Housing,HRAOPS,HRA Older Persons Service,Art Work,17/10/2012,1245409,"1,149.76",A039678,Rikke Digerud
North West Leicestershire District Council ,31UH,Housing,HRAOPS,HRA Older Persons Service,Rent payments,10/10/2012,1244888,"1,140.96",A000950,Leicestershire County Council
North West Leicestershire District Council ,31UH,Leisure Centres,HPLC,Hood Park Leisure Centre,Licensing - Customer Research,24/10/2012,1242383,"1,140.00",A034754,Customer Research Technology Ltd
North West Leicestershire District Council ,31UH,Leisure Centres,HPLC,Hood Park Leisure Centre,Sound & Lighting - Corporate Events,03/10/2012,1244536,"1,125.00",A027592,Chameleon Pro Audio & Lighting Ltd
North West Leicestershire District Council ,31UH,Environmental Health,EEHL,Environmental Health & Licensing,Postage - Franking machine leasing,12/10/2011,1222544,"1,120.07",A031590,Neopost Finance Limited
North West Leicestershire District Council ,31UH,Leisure Centres,HPBC,Hood Park Bar and Catering,Catering Supplies - Confectionery.,17/10/2012,1245570,"1,117.50",A001264,Palmer Harvey Mclane Ltd
North West Leicestershire District Council ,31UH,Leisure Centres,HLC,Hermitage Leisure Centre,Water - Treatment Chemicals,03/10/2012,1244515,"1,105.11",A001591,Stowlin Ltd
North West Leicestershire District Council ,31UH,Housing Repairs,HRAHRM,HRA Housing Repairs & Maintenance,Gas & Electricity - Boiler replacement,24/10/2012,1246019,"1,094.41",A031787,Lakers UK
North West Leicestershire District Council ,31UH,Housing Repairs,HRAHRM,HRA Housing Repairs & Maintenance,Building Services - Housing - HPIP 9 - 10,24/10/2012,1245907,"1,094.00",A036945,Apollo Property Services Group Limited
North West Leicestershire District Council ,31UH,Housing Repairs,HRAHRM,HRA Housing Repairs & Maintenance,Building Services - Housing - HPIP 9 - 10,24/10/2012,1245908,"1,094.00",A036945,Apollo Property Services Group Limited
North West Leicestershire District Council ,31UH,Housing Repairs,HRAHRM,HRA Housing Repairs & Maintenance,Building Services - Housing - HPIP 9 - 10,24/10/2012,1245909,"1,094.00",A036945,Apollo Property Services Group Limited
North West Leicestershire District Council ,31UH,Housing Repairs,HRAHRM,HRA Housing Repairs & Maintenance,Building Services - Housing - HPIP 9 - 10,24/10/2012,1245910,"1,094.00",A036945,Apollo Property Services Group Limited
North West Leicestershire District Council ,31UH,Housing Repairs,HRAHRM,HRA Housing Repairs & Maintenance,Building Services - Housing - HPIP 9 - 10,24/10/2012,1245911,"1,094.00",A036945,Apollo Property Services Group Limited
North West Leicestershire District Council ,31UH,Housing Repairs,HRAHRM,HRA Housing Repairs & Maintenance,Building Services - Housing - HPIP 9 - 10,24/10/2012,1245913,"1,094.00",A036945,Apollo Property Services Group Limited
North West Leicestershire District Council ,31UH,Housing Repairs,HRAHRM,HRA Housing Repairs & Maintenance,Building Services - Housing - HPIP 9 - 10,24/10/2012,1245914,"1,094.00",A036945,Apollo Property Services Group Limited
North West Leicestershire District Council ,31UH,Housing Repairs,HRAHRM,HRA Housing Repairs & Maintenance,Building Services - Housing - HPIP 9 - 10,24/10/2012,1245915,"1,094.00",A036945,Apollo Property Services Group Limited
North West Leicestershire District Council ,31UH,Housing Repairs,HRAHRM,HRA Housing Repairs & Maintenance,Building Services - Housing - HPIP 9 - 10,24/10/2012,1245916,"1,094.00",A036945,Apollo Property Services Group Limited
North West Leicestershire District Council ,31UH,Housing Repairs,HRAHRM,HRA Housing Repairs & Maintenance,Building Services - Housing - HPIP 9 - 10,24/10/2012,1245917,"1,094.00",A036945,Apollo Property Services Group Limited
North West Leicestershire District Council ,31UH,Housing Repairs,HRAHRM,HRA Housing Repairs & Maintenance,Building Services - Housing - HPIP 9 - 10,24/10/2012,1245918,"1,094.00",A036945,Apollo Property Services Group Limited
North West Leicestershire District Council ,31UH,Housing Repairs,HRAHRM,HRA Housing Repairs & Maintenance,Building Services - Housing - HPIP 9 - 10,24/10/2012,1245919,"1,094.00",A036945,Apollo Property Services Group Limited
North West Leicestershire District Council ,31UH,Housing Repairs,HRAHRM,HRA Housing Repairs & Maintenance,Building Services - Housing - HPIP 9 - 10,24/10/2012,1245920,"1,094.00",A036945,Apollo Property Services Group Limited
North West Leicestershire District Council ,31UH,Housing Repairs,HRAHRM,HRA Housing Repairs & Maintenance,Building Services - Housing - HPIP 9 - 10,24/10/2012,1245921,"1,094.00",A036945,Apollo Property Services Group Limited
North West Leicestershire District Council ,31UH,Corporate Director,CORDI,Corporate Director,Consultancy,10/10/2012,1244965,"1,089.11",A039356,Broadsted Associates Ltd
North West Leicestershire District Council ,31UH,Housing Repairs,HRAHRM,HRA Housing Repairs & Maintenance,Gas & Electricity - Boiler replacement,10/10/2012,1245154,"1,088.13",A031787,Lakers UK
North West Leicestershire District Council ,31UH,Housing Repairs,HRAHRM,HRA Housing Repairs & Maintenance,Gas & Electricity - Boiler replacement,24/10/2012,1246027,"1,066.98",A031787,Lakers UK
North West Leicestershire District Council ,31UH,Housing Repairs,HRAHRM,HRA Housing Repairs & Maintenance,Gas & Electricity - Boiler replacement,24/10/2012,1246032,"1,039.07",A031787,Lakers UK
North West Leicestershire District Council ,31UH,Housing Repairs,HRAHRM,HRA Housing Repairs & Maintenance,Housing Maintenance - Replacement Windows and Doors,03/10/2012,1244739,"1,028.97",A036741,SBP Limited (Trading as Plastal & Permadoor)
North West Leicestershire District Council ,31UH,Housing Repairs,HRAHRM,HRA Housing Repairs & Maintenance,Housing Maintenance - Replacement Windows and Doors,03/10/2012,1244740,"1,028.97",A036741,SBP Limited (Trading as Plastal & Permadoor)
North West Leicestershire District Council ,31UH,Property Services,PROPCL,Property Commercial Lettings,Mail Supplies -Franking Machine,10/10/2012,1245050,"1,013.00",A008204,Purchase Power
North West Leicestershire District Council ,31UH,Street Management,ENOT,Environment Transport,Waste - Waste handling equipment manufacturer,24/10/2012,1246062,"1,005.94",A017895,Geesink Norba Limited
North West Leicestershire District Council ,31UH,Housing Repairs,HRAHRM,HRA Housing Repairs & Maintenance,Gas & Electricity - Boiler replacement,24/10/2012,1246042,986.29,A031787,Lakers UK
North West Leicestershire District Council ,31UH,Housing Repairs,HRAHRM,HRA Housing Repairs & Maintenance,PPE,19/10/2011,1223282,964.11,A009933,Westbury Industrial Supplies Limited
North West Leicestershire District Council ,31UH,Street Management,ENOT,Environment Transport,Road fund licences,19/10/2011,1223181,960.00,A008559,Post Office Limited
North West Leicestershire District Council ,31UH,Street Management,ENOT,Environment Transport,Cleaning Materials,03/10/2012,1244479,953.58,A039355,Johnston Sweepers Ltd
North West Leicestershire District Council ,31UH,Housing Repairs,HRAHRM,HRA Housing Repairs & Maintenance,Gas & Electricity - Boiler replacement,10/10/2012,1245175,943.69,A031787,Lakers UK
North West Leicestershire District Council ,31UH,Street Management,ENOT,Environment Transport,Roads - Rock Salt,03/10/2012,1244458,939.51,A001433,Salt Union Ltd
North West Leicestershire District Council ,31UH,Leisure Centres,HLC,Hermitage Leisure Centre,Building - General Maintenance works - Minor framework,24/10/2012,1246084,917.39,A036239,Alf Wright Construction Limited
North West Leicestershire District Council ,31UH,Housing Strategy,HS,Community - Housing Strategy,Accomodation - Bed and Breakfast for Housing Strategy,03/10/2012,1244540,910.00,A032364,Pinewood Lodge
North West Leicestershire District Council ,31UH,Housing Repairs,HRAHRM,HRA Housing Repairs & Maintenance,Gas & Electricity - Boiler replacement,24/10/2012,1246044,907.35,A031787,Lakers UK
North West Leicestershire District Council ,31UH,Leisure Centres,HLC,Hermitage Leisure Centre,Events and Festivals,03/10/2012,1244522,900.00,A038184,Coalville Basketball Club
North West Leicestershire District Council ,31UH,Leisure Centres,HLC,Hermitage Leisure Centre,Health and Safety Certificate,24/10/2012,1245866,900.00,A022932,Burton College
North West Leicestershire District Council ,31UH,Street Management,ENOT,Environment Transport,Engineering - Parts / Supplies,03/10/2012,1244491,898.74,A036178,Taylor Engineering & Fabrications Ltd
North West Leicestershire District Council ,31UH,Street Management,ENOWM,Environment Waste Management,Water - Sewerage services,12/10/2011,1222681,880.95,A001468,Severn Trent Water Limited
North West Leicestershire District Council ,31UH,Leisure Centres,HLC,Hermitage Leisure Centre,Water - Treatment Chemicals,24/10/2012,1245792,878.61,A001591,Stowlin Ltd
North West Leicestershire District Council ,31UH,Environmental Health,EEHL,Environmental Health & Licensing,Animals - Veterinary Care,24/10/2012,1245681,857.18,A033670,Eville And Jones Limited
North West Leicestershire District Council ,31UH,Housing Repairs,HRAHRM,HRA Housing Repairs & Maintenance,Gas & Electricity - Boiler replacement,17/10/2012,1245511,848.86,A031787,Lakers UK
North West Leicestershire District Council ,31UH,Street Management,ESS,Environment - Street Scene,Electricians,10/10/2012,1243777,835.75,A000548,Electract Limited
North West Leicestershire District Council ,31UH,Street Management,ENOGT,Environment General Technician,Energy - Electricity - Contract 1,26/10/2011,1223740,833.47,A030266,Southern Electric
North West Leicestershire District Council ,31UH,Leisure Centres,HLC,Hermitage Leisure Centre,Claim,17/10/2012,1245578,833.34,A027454,Measham Leisure Centre
North West Leicestershire District Council ,31UH,Leisure Centres,HPBC,Hood Park Bar and Catering,Catering Supplies - Confectionery.,03/10/2012,1244546,818.07,A001264,Palmer Harvey Mclane Ltd
North West Leicestershire District Council ,31UH,Housing Repairs,HRAHRM,HRA Housing Repairs & Maintenance,Gas & Electricity - Boiler replacement,24/10/2012,1246020,805.00,A031787,Lakers UK
North West Leicestershire District Council ,31UH,Street Management,ENOT,Environment Transport,Gas - Heating,10/10/2012,1245069,802.22,A032686,Calor Gas Limited
North West Leicestershire District Council ,31UH,Street Management,ENOP,Environment Parks,Grounds Maintenance - Landscaping,24/10/2012,1245846,800.00,A035186,Manor Landscapes
North West Leicestershire District Council ,31UH,Street Management,ENOP,Environment Parks,Grounds Maintenance - Landscaping,10/10/2012,1244961,800.00,A035186,Manor Landscapes
North West Leicestershire District Council ,31UH,Housing,HRAHM,HRA Housing Management,Energy - Gas - Contract 2 + 5 + 6,04/10/2011,1222368,783.87,A035709,Corona Energy Retail 4 Ltd
North West Leicestershire District Council ,31UH,Street Management,ENOP,Environment Parks,Top Dressing,24/10/2012,1246066,783.00,A034991,Sherriff Amenity
North West Leicestershire District Council ,31UH,Legal & Democratic,LDLS,Legal Services,Legal services,05/10/2011,1222294,771.42,A000251,Browne Jacobson LLP
North West Leicestershire District Council ,31UH,Housing Repairs,HRAHRM,HRA Housing Repairs & Maintenance,Building Services - Housing - HPIP 9 - 10,24/10/2012,1245899,762.72,A036945,Apollo Property Services Group Limited
North West Leicestershire District Council ,31UH,Housing Repairs,HRAHRM,HRA Housing Repairs & Maintenance,Building Services - Housing - HPIP 9 - 10,24/10/2012,1245900,762.72,A036945,Apollo Property Services Group Limited
North West Leicestershire District Council ,31UH,Leisure Centres,HPLC,Hood Park Leisure Centre,Leisure - Swimwear and accessories,03/10/2012,1244535,756.00,A001833,Zoggs International Ltd
North West Leicestershire District Council ,31UH,Housing Strategy,HS,Community - Housing Strategy,Bond Payment,05/10/2011,1222012,750.00,A035538,Karen Clarke Estates Ltd
North West Leicestershire District Council ,31UH,Housing,HRAHM,HRA Housing Management,Catalogue stocks,25/10/2011,1223834,748.41,A000958,ESPO
North West Leicestershire District Council ,31UH,Corporate Director,HR,Human Resources,Criminal Records Checks,11/10/2011,1222898,748.00,A027625,Criminal Records Bureau
North West Leicestershire District Council ,31UH,Environmental Health,EES,Environmental Services,Plumbing & heating systems,19/10/2011,1223301,746.00,A024387,Rudkin & Herbert
North West Leicestershire District Council ,31UH,Housing Repairs,HRAHRM,HRA Housing Repairs & Maintenance,Gas & Electricity - Gas installation ,24/10/2012,1245436,744.33,A026237,British Gas Trading Limited
North West Leicestershire District Council ,31UH,Housing Repairs,HRAHRM,HRA Housing Repairs & Maintenance,Gas & Electricity - Gas installation ,24/10/2012,1245437,744.33,A026237,British Gas Trading Limited
North West Leicestershire District Council ,31UH,Housing Repairs,HRAHRM,HRA Housing Repairs & Maintenance,Gas & Electricity - Gas installation ,24/10/2012,1245445,744.33,A026237,British Gas Trading Limited
North West Leicestershire District Council ,31UH,Housing Repairs,HRAHRM,HRA Housing Repairs & Maintenance,Gas & Electricity - Gas installation ,24/10/2012,1245446,744.33,A026237,British Gas Trading Limited
North West Leicestershire District Council ,31UH,Housing Repairs,HRAHRM,HRA Housing Repairs & Maintenance,Gas & Electricity - Gas installation ,24/10/2012,1245447,744.33,A026237,British Gas Trading Limited
North West Leicestershire District Council ,31UH,Housing Repairs,HRAHRM,HRA Housing Repairs & Maintenance,Gas & Electricity - Gas installation ,24/10/2012,1245448,744.33,A026237,British Gas Trading Limited
North West Leicestershire District Council ,31UH,Housing Repairs,HRAHRM,HRA Housing Repairs & Maintenance,Gas & Electricity - Gas installation ,24/10/2012,1245449,744.33,A026237,British Gas Trading Limited
North West Leicestershire District Council ,31UH,Housing Repairs,HRAHRM,HRA Housing Repairs & Maintenance,Gas & Electricity - Gas installation ,24/10/2012,1245451,744.33,A026237,British Gas Trading Limited
North West Leicestershire District Council ,31UH,Housing Repairs,HRAHRM,HRA Housing Repairs & Maintenance,Gas & Electricity - Gas installation ,24/10/2012,1245452,744.33,A026237,British Gas Trading Limited
North West Leicestershire District Council ,31UH,Housing Repairs,HRAHRM,HRA Housing Repairs & Maintenance,Gas & Electricity - Gas installation ,24/10/2012,1245453,744.33,A026237,British Gas Trading Limited
North West Leicestershire District Council ,31UH,Housing Repairs,HRAHRM,HRA Housing Repairs & Maintenance,Gas & Electricity - Gas installation ,24/10/2012,1245454,744.33,A026237,British Gas Trading Limited
North West Leicestershire District Council ,31UH,Housing Repairs,HRAHRM,HRA Housing Repairs & Maintenance,Gas & Electricity - Gas installation ,24/10/2012,1245455,744.33,A026237,British Gas Trading Limited
North West Leicestershire District Council ,31UH,Housing Repairs,HRAHRM,HRA Housing Repairs & Maintenance,Gas & Electricity - Gas installation ,24/10/2012,1245457,744.33,A026237,British Gas Trading Limited
North West Leicestershire District Council ,31UH,Housing Repairs,HRAHRM,HRA Housing Repairs & Maintenance,Gas & Electricity - Gas installation ,24/10/2012,1245459,744.33,A026237,British Gas Trading Limited
North West Leicestershire District Council ,31UH,Housing Repairs,HRAHRM,HRA Housing Repairs & Maintenance,Gas & Electricity - Gas installation ,24/10/2012,1245460,744.33,A026237,British Gas Trading Limited
North West Leicestershire District Council ,31UH,Housing Repairs,HRAHRM,HRA Housing Repairs & Maintenance,Gas & Electricity - Gas installation ,24/10/2012,1245461,744.33,A026237,British Gas Trading Limited
North West Leicestershire District Council ,31UH,Housing Repairs,HRAHRM,HRA Housing Repairs & Maintenance,Gas & Electricity - Gas installation ,24/10/2012,1245462,744.33,A026237,British Gas Trading Limited
North West Leicestershire District Council ,31UH,Housing Repairs,HRAHRM,HRA Housing Repairs & Maintenance,Gas & Electricity - Gas installation ,24/10/2012,1245463,744.33,A026237,British Gas Trading Limited
North West Leicestershire District Council ,31UH,Housing Repairs,HRAHRM,HRA Housing Repairs & Maintenance,Gas & Electricity - Gas installation ,24/10/2012,1245464,744.33,A026237,British Gas Trading Limited
North West Leicestershire District Council ,31UH,Housing Repairs,HRAHRM,HRA Housing Repairs & Maintenance,Gas & Electricity - Gas installation ,24/10/2012,1245465,744.33,A026237,British Gas Trading Limited
North West Leicestershire District Council ,31UH,Housing Repairs,HRAHRM,HRA Housing Repairs & Maintenance,Gas & Electricity - Gas installation ,24/10/2012,1245466,744.33,A026237,British Gas Trading Limited
North West Leicestershire District Council ,31UH,Housing Repairs,HRAHRM,HRA Housing Repairs & Maintenance,Gas & Electricity - Gas installation ,24/10/2012,1245467,744.33,A026237,British Gas Trading Limited
North West Leicestershire District Council ,31UH,Housing Repairs,HRAHRM,HRA Housing Repairs & Maintenance,Gas & Electricity - Gas installation ,24/10/2012,1245468,744.33,A026237,British Gas Trading Limited
North West Leicestershire District Council ,31UH,Housing Repairs,HRAHRM,HRA Housing Repairs & Maintenance,Gas & Electricity - Gas installation ,24/10/2012,1245469,744.33,A026237,British Gas Trading Limited
North West Leicestershire District Council ,31UH,Housing Repairs,HRAHRM,HRA Housing Repairs & Maintenance,Gas & Electricity - Gas installation ,24/10/2012,1245470,744.33,A026237,British Gas Trading Limited
North West Leicestershire District Council ,31UH,Housing Repairs,HRAHRM,HRA Housing Repairs & Maintenance,Gas & Electricity - Gas installation ,24/10/2012,1245471,744.33,A026237,British Gas Trading Limited
North West Leicestershire District Council ,31UH,Housing Repairs,HRAHRM,HRA Housing Repairs & Maintenance,Gas & Electricity - Gas installation ,24/10/2012,1245472,744.33,A026237,British Gas Trading Limited
North West Leicestershire District Council ,31UH,Housing Repairs,HRAHRM,HRA Housing Repairs & Maintenance,Gas & Electricity - Gas installation ,24/10/2012,1245473,744.33,A026237,British Gas Trading Limited
North West Leicestershire District Council ,31UH,Housing Repairs,HRAHRM,HRA Housing Repairs & Maintenance,Gas & Electricity - Gas installation ,24/10/2012,1245474,744.33,A026237,British Gas Trading Limited
North West Leicestershire District Council ,31UH,Housing Repairs,HRAHRM,HRA Housing Repairs & Maintenance,Gas & Electricity - Gas installation ,24/10/2012,1245475,744.33,A026237,British Gas Trading Limited
North West Leicestershire District Council ,31UH,Housing Repairs,HRAHRM,HRA Housing Repairs & Maintenance,Gas & Electricity - Gas installation ,24/10/2012,1245476,744.33,A026237,British Gas Trading Limited
North West Leicestershire District Council ,31UH,Housing Repairs,HRAHRM,HRA Housing Repairs & Maintenance,Gas & Electricity - Gas installation ,24/10/2012,1245477,744.33,A026237,British Gas Trading Limited
North West Leicestershire District Council ,31UH,Housing Repairs,HRAHRM,HRA Housing Repairs & Maintenance,Gas & Electricity - Gas installation ,24/10/2012,1245479,744.33,A026237,British Gas Trading Limited
North West Leicestershire District Council ,31UH,Housing Repairs,HRAHRM,HRA Housing Repairs & Maintenance,Gas & Electricity - Gas installation ,24/10/2012,1245480,744.33,A026237,British Gas Trading Limited
North West Leicestershire District Council ,31UH,Housing Repairs,HRAHRM,HRA Housing Repairs & Maintenance,Gas & Electricity - Gas installation ,24/10/2012,1245481,744.33,A026237,British Gas Trading Limited
North West Leicestershire District Council ,31UH,Housing Repairs,HRAHRM,HRA Housing Repairs & Maintenance,Gas & Electricity - Gas installation ,24/10/2012,1245482,744.33,A026237,British Gas Trading Limited
North West Leicestershire District Council ,31UH,Housing Repairs,HRAHRM,HRA Housing Repairs & Maintenance,Gas & Electricity - Gas installation ,24/10/2012,1245483,744.33,A026237,British Gas Trading Limited
North West Leicestershire District Council ,31UH,Housing Repairs,HRAHRM,HRA Housing Repairs & Maintenance,Gas & Electricity - Gas installation ,24/10/2012,1245484,744.33,A026237,British Gas Trading Limited
North West Leicestershire District Council ,31UH,Housing Repairs,HRAHRM,HRA Housing Repairs & Maintenance,Gas & Electricity - Gas installation ,24/10/2012,1245485,744.33,A026237,British Gas Trading Limited
North West Leicestershire District Council ,31UH,Housing Repairs,HRAHRM,HRA Housing Repairs & Maintenance,Gas & Electricity - Gas installation ,24/10/2012,1245486,744.33,A026237,British Gas Trading Limited
North West Leicestershire District Council ,31UH,Housing Repairs,HRAHRM,HRA Housing Repairs & Maintenance,Gas & Electricity - Gas installation ,24/10/2012,1245487,744.33,A026237,British Gas Trading Limited
North West Leicestershire District Council ,31UH,Housing Repairs,HRAHRM,HRA Housing Repairs & Maintenance,Gas & Electricity - Gas installation ,24/10/2012,1245488,744.33,A026237,British Gas Trading Limited
North West Leicestershire District Council ,31UH,Housing Repairs,HRAHRM,HRA Housing Repairs & Maintenance,Gas & Electricity - Gas installation ,24/10/2012,1245489,744.33,A026237,British Gas Trading Limited
North West Leicestershire District Council ,31UH,Legal & Democratic,LDLS,Legal Services,Books - Legal,26/10/2011,1223986,730.00,A001611,Sweet & Maxwell Ltd
North West Leicestershire District Council ,31UH,Leisure Centres,HLC,Hermitage Leisure Centre,Claim,17/10/2012,1245579,729.20,A027454,Measham Leisure Centre
North West Leicestershire District Council ,31UH,Housing,HRACS,HRA Customer Services,Office Furniture,03/10/2012,1244575,702.90,A034750,Online Ergonomics Ltd
North West Leicestershire District Council ,31UH,Property Services,PROPFM,Property Facilities Management,Valuation Report,17/10/2012,1245736,700.00,A034291,Valuation Office Agency
North West Leicestershire District Council ,31UH,Housing Repairs,HRAHRM,HRA Housing Repairs & Maintenance,Gas & Electricity - Boiler replacement,24/10/2012,1245997,695.96,A031787,Lakers UK
North West Leicestershire District Council ,31UH,Street Management,ENOP,Environment Parks,Manufacturing and Installation of steel doors and windows,24/10/2012,1246058,685.00,A039718,Instaweld Engineering
North West Leicestershire District Council ,31UH,Leisure Centres,HPLC,Hood Park Leisure Centre,PPE,10/10/2012,1243294,684.45,A030776,Keltic
North West Leicestershire District Council ,31UH,Leisure Centres,HPBC,Hood Park Bar and Catering,Catering Supplies - Confectionery.,17/10/2012,1245569,681.46,A001264,Palmer Harvey Mclane Ltd
North West Leicestershire District Council ,31UH,Housing Repairs,HRAHRM,HRA Housing Repairs & Maintenance,Building Services - Housing - HPIP 9 - 10,24/10/2012,1245903,681.00,A036945,Apollo Property Services Group Limited
North West Leicestershire District Council ,31UH,Housing Repairs,HRAHRM,HRA Housing Repairs & Maintenance,Building Services - Housing - HPIP 9 - 10,24/10/2012,1245904,681.00,A036945,Apollo Property Services Group Limited
North West Leicestershire District Council ,31UH,Housing Repairs,HRAHRM,HRA Housing Repairs & Maintenance,Housing Maintenance - Replacement Windows and Doors,03/10/2012,1244725,680.50,A036741,SBP Limited (Trading as Plastal & Permadoor)
North West Leicestershire District Council ,31UH,Housing Repairs,HRAHRM,HRA Housing Repairs & Maintenance,Building Services - Housing - HPIP 9 - 10,24/10/2012,1245898,675.63,A036945,Apollo Property Services Group Limited
North West Leicestershire District Council ,31UH,Housing Repairs,HRAHRM,HRA Housing Repairs & Maintenance,Building Services - Housing - HPIP 9 - 10,24/10/2012,1245906,675.63,A036945,Apollo Property Services Group Limited
North West Leicestershire District Council ,31UH,Housing Repairs,HRAHRM,HRA Housing Repairs & Maintenance,Building Services - Housing - HPIP 9 - 10,24/10/2012,1245897,675.62,A036945,Apollo Property Services Group Limited
North West Leicestershire District Council ,31UH,Housing Repairs,HRAHRM,HRA Housing Repairs & Maintenance,Building Services - Housing - HPIP 9 - 10,24/10/2012,1245905,675.62,A036945,Apollo Property Services Group Limited
North West Leicestershire District Council ,31UH,Street Management,ENOT,Environment Transport,Fuel ,10/10/2012,1245083,666.87,A034942,Pace Petroleum Ltd
North West Leicestershire District Council ,31UH,Housing Repairs,HRAHRM,HRA Housing Repairs & Maintenance,Building Services - Housing - HPIP 9 - 10,24/10/2012,1245894,658.00,A036945,Apollo Property Services Group Limited
North West Leicestershire District Council ,31UH,Housing Repairs,HRAHRM,HRA Housing Repairs & Maintenance,Building Services - Housing - HPIP 9 - 10,24/10/2012,1245895,658.00,A036945,Apollo Property Services Group Limited
North West Leicestershire District Council ,31UH,Street Management,ENOT,Environment Transport,Tyre Supplier,17/10/2012,1245588,654.00,A034248,Stapletons Tyre Service Ltd
North West Leicestershire District Council ,31UH,Housing Repairs,HRAHRM,HRA Housing Repairs & Maintenance,Gas & Electricity - Boiler replacement,24/10/2012,1245994,651.10,A031787,Lakers UK
North West Leicestershire District Council ,31UH,Property Services,PROPCL,Property Commercial Lettings,Building - General Maintenance works - Minor framework,10/10/2012,1243884,648.00,A036239,Alf Wright Construction Limited
North West Leicestershire District Council ,31UH,Housing,HRAHM,HRA Housing Management,Wheelie bin cleaning,03/10/2012,1244297,642.50,A034116,A J Contracts
North West Leicestershire District Council ,31UH,Leisure Centres,HPLC,Hood Park Leisure Centre,safety product,24/10/2012,1245526,642.00,A027301,IQL UK Ltd
North West Leicestershire District Council ,31UH,Leisure Centres,HLC,Hermitage Leisure Centre,Leisure - Rental of Water Fountain,17/10/2012,1245532,639.36,A030420,MIW Office Solutions Ltd
North West Leicestershire District Council ,31UH,Information Technology,ICT,ICT Services,Paper,03/10/2012,1244495,638.75,A038178,Antalis McNaughton Limited
North West Leicestershire District Council ,31UH,Leisure & Culture,SPA,Sport & Physical Activity,Leisure - cholesterol screening - active together,03/10/2012,1244303,630.92,A036681,BHR Pharmaceuticals Limited
North West Leicestershire District Council ,31UH,Housing,HRAOPS,HRA Older Persons Service,Rent payments,05/10/2011,1222016,625.12,A000950,Leicestershire County Council
North West Leicestershire District Council ,31UH,Housing,HRAOPS,HRA Older Persons Service,Rent payments,12/10/2011,1222611,625.12,A000950,Leicestershire County Council
North West Leicestershire District Council ,31UH,Property Services,PROPCL,Property Commercial Lettings,Cleaning & Hygiene Services,03/10/2012,1244922,624.56,A009237,Phs Group Ltd
North West Leicestershire District Council ,31UH,Street Management,ESS,Environment - Street Scene,Training - Year Ahead For Regulatory Services,24/10/2012,1246202,624.00,A027750,CIEH
North West Leicestershire District Council ,31UH,Housing Repairs,HRAHRM,HRA Housing Repairs & Maintenance,Gas & Electricity - Boiler replacement,10/10/2012,1245269,622.03,A031787,Lakers UK
North West Leicestershire District Council ,31UH,Housing Repairs,HRAHRM,HRA Housing Repairs & Maintenance,Housing Maintenance - Supply and Fit of Composite Doors and UPVC Frames,03/10/2012,1244668,620.25,A038041,I G Doors Limited
North West Leicestershire District Council ,31UH,Housing Repairs,HRAHRM,HRA Housing Repairs & Maintenance,Gas & Electricity - Boiler replacement,24/10/2012,1245961,617.76,A031787,Lakers UK
North West Leicestershire District Council ,31UH,Housing Repairs,HRAHRM,HRA Housing Repairs & Maintenance,Gas & Electricity - Boiler replacement,10/10/2012,1245218,610.74,A031787,Lakers UK
North West Leicestershire District Council ,31UH,Street Management,ENOP,Environment Parks,Top Dressing,03/10/2012,1244488,606.02,A034991,Sherriff Amenity
North West Leicestershire District Council ,31UH,Corporate Director,HR,Human Resources,Training,03/10/2012,1244904,606.00,A037280,SERCO
North West Leicestershire District Council ,31UH,Leisure & Culture,LCM,Leisure & Cult Mangt,grant payment,12/10/2011,1222946,600.00,A030567,Riverview Tenants Association
North West Leicestershire District Council ,31UH,Street Management,ENOP,Environment Parks,Garden Works,24/10/2012,1246095,600.00,A039324,Four Counties Tree Specialists Ltd
North West Leicestershire District Council ,31UH,Street Management,ESS,Environment - Street Scene,Consultancy,10/10/2012,1245121,600.00,A039235,Sharps Acoustics LLP
North West Leicestershire District Council ,31UH,Street Management,ESS,Environment - Street Scene,Printers,17/10/2012,1245424,595.00,A001291,Pegg Print (L G Pegg)
North West Leicestershire District Council ,31UH,Leisure Centres,HPLC,Hood Park Leisure Centre,Telecommunication - Line Rental,19/10/2011,1223173,580.83,A035373,Virgin Media Business
North West Leicestershire District Council ,31UH,Environmental Health,EES,Environmental Services,Grant payment,05/10/2011,1222465,578.00,A038469,Leicestershire County Council
North West Leicestershire District Council ,31UH,Leisure Centres,HLBC,Hermitage Bar & Catering,Catering Supplies - Confectionery.,17/10/2012,1245412,576.84,A001264,Palmer Harvey Mclane Ltd
North West Leicestershire District Council ,31UH,Housing Repairs,HRAHRM,HRA Housing Repairs & Maintenance,Gas & Electricity - Boiler replacement,10/10/2012,1245212,576.33,A031787,Lakers UK
North West Leicestershire District Council ,31UH,Housing Repairs,HRAHRM,HRA Housing Repairs & Maintenance,Gas & Electricity - Boiler replacement,10/10/2012,1245270,565.07,A031787,Lakers UK
North West Leicestershire District Council ,31UH,Street Management,ENOP,Environment Parks,Conservation - specialist,03/10/2012,1244321,560.00,A027743,Leicestershire & Rutland Wildlife Trust
North West Leicestershire District Council ,31UH,Leisure & Culture,CULTEV,Cultural Services Arts & Events,catering  ,10/10/2012,1245016,560.00,A038805,The Buffet Car (Coalville) Limited
North West Leicestershire District Council ,31UH,Property Services,PROPCL,Property Commercial Lettings,Horticulture - Internal Plants,17/10/2012,1245084,552.50,A003371,Urban Planters Leicestershire (limited)
North West Leicestershire District Council ,31UH,Property Services,PROPCL,Property Commercial Lettings,Advertisement,24/10/2012,1244493,550.00,A033652,Leicester Mercury Group Ltd
North West Leicestershire District Council ,31UH,Housing Repairs,HRAHRM,HRA Housing Repairs & Maintenance,Housing Maintenance - Supply and Fit of Composite Doors and UPVC Frames,03/10/2012,1244659,539.91,A038041,I G Doors Limited
North West Leicestershire District Council ,31UH,Housing Repairs,HRAHRM,HRA Housing Repairs & Maintenance,Gas & Electricity - Boiler replacement,03/10/2012,1244680,539.39,A031787,Lakers UK
North West Leicestershire District Council ,31UH,Leisure & Culture,CULTIC,Cultural Services TIC,Rent payments,12/10/2011,1222869,537.50,A000950,Leicestershire County Council
North West Leicestershire District Council ,31UH,Street Management,ENOT,Environment Transport,Security Services,17/10/2012,1245374,531.00,A013049,Regarde Security Ltd
North West Leicestershire District Council ,31UH,Leisure Centres,HLBC,Hermitage Bar & Catering,Catering Supplies - Confectionery.,17/10/2012,1245618,527.27,A001264,Palmer Harvey Mclane Ltd
North West Leicestershire District Council ,31UH,Street Management,ENOGT,Environment General Technician,Water - Sewerage services,12/10/2011,1222688,516.59,A001468,Severn Trent Water Limited
North West Leicestershire District Council ,31UH,Property Services,PROPCL,Property Commercial Lettings,Cleaning & Hygiene Services,03/10/2012,1244923,505.86,A009237,Phs Group Ltd
North West Leicestershire District Council ,31UH,Finance,REVS,Revenues,Legal advice,12/10/2011,1222622,504.92,A038174,Timms Solicitors
North West Leicestershire District Council ,31UH,Street Management,ENOT,Environment Transport,Vehicle Services - Hydraulic Engineers,10/10/2012,1245027,503.00,A001106,Midland Hydraulic Services Limited
North West Leicestershire District Council ,31UH,Housing,HRAOPS,HRA Older Persons Service,training,17/10/2012,1245410,500.00,A039758,Beauty and Utility Arts
North West Leicestershire District Council ,31UH,Property Services,PROPFM,Property Facilities Management,Valuation Report,17/10/2012,1245735,500.00,A034291,Valuation Office Agency
North West Leicestershire District Council ,31UH,Leisure Centres,HLC,Hermitage Leisure Centre,Claim,17/10/2012,1245580,500.00,A027454,Measham Leisure Centre
,,,,,,,,"973,381.86",,
